bitfinex/quotes_SOLUSD_20230116
["timestamp","ask_amount","ask_price","bid_price","bid_amount"]
[1673857689717,21.46196354,23.286,23.254,4.08325]
[1673857689927,20.0,23.289,23.254,4.08325]
[1673857691390,20.0,23.291,23.254,4.08325]
[1673857691602,20.0,23.291,23.255,20.0]
[1673857691812,20.0,23.291,23.256,41.08289]
[1673857692031,21.46196354,23.29,23.257,4.08272]
[1673857692247,21.46196354,23.29,23.257,116.50902]
[1673857692453,21.46196354,23.29,23.258,37.0]
[1673857692681,20.0,23.289,23.259,4.08237]
[1673857692871,21.06,23.28,23.257,112.4263]
[1673857693065,21.06,23.28,23.23,21.06]
[1673857693279,21.06,23.27,23.245,4.08483]
[1673857693505,20.0,23.269,23.233,20.0]
[1673857693822,62.92392708,23.269,23.233,20.0]
[1673857694025,21.46196354,23.268,23.233,20.0]
[1673857694241,21.46196354,23.268,23.232,109.6472]
[1673857694438,17.0,23.267,23.233,4.08694]
[1673857694649,21.06,23.26,23.233,4.08694]
[1673857694962,17.0,23.259,23.218,118.0608]
[1673857695196,86.2444071,23.259,23.218,118.0608]
[1673857695383,21.46196354,23.258,23.218,118.0608]
[1673857695591,20.0,23.256,23.219,20.0]
[1673857696025,50.71774043,23.255,23.22,4.08922]
[1673857696445,49.25577689,23.254,23.22,4.08922]
[1673857696983,28.86144356,23.253,23.22,4.08922]
[1673857697169,20.0,23.254,23.22,4.08922]
[1673857697586,50.3234071,23.253,23.221,37.7986542]
[1673857697904,38.46196354,23.252,23.221,37.7986542]
[1673857698114,28.86144356,23.253,23.22,4.08922]
[1673857698338,20.89,23.25,23.213,37.7986542]
[1673857698560,20.0,23.248,23.205,118.0608]
[1673857698761,21.06,23.24,23.206,4.09169]
[1673857699165,34.55544356,23.239,23.205,98.64474223]
[1673857699389,54.55544356,23.239,23.205,98.64474223]
[1673857699601,20.0,23.238,23.205,98.64474223]
[1673857699814,54.55544356,23.238,23.205,98.64474223]
[1673857700008,34.46097689,23.237,23.205,98.64474223]
[1673857700333,21.46196354,23.246,23.205,98.64474223]
[1673857700553,20.0,23.249,23.206,22.59169]
[1673857700743,90.37099428,23.248,23.206,20.0]
[1673857700954,29.22769689,23.247,23.206,20.0]
[1673857701164,29.22769689,23.247,23.21,20.89]
[1673857701374,48.90903074,23.246,23.21,24.98099]
[1673857701584,20.0,23.245,23.211,20.0]
[1673857701790,52.08769689,23.245,23.212,20.0]
[1673857702002,52.08769689,23.245,23.211,20.0]
[1673857702003,48.90903074,23.244,23.211,20.0]
[1673857702213,80.99672763,23.244,23.211,20.0]
[1673857702422,32.08769689,23.243,23.211,20.0]
[1673857702753,20.0,23.256,23.211,20.0]
[1673857702963,28.68689689,23.257,23.22,20.89]
[1673857703208,20.84467,23.26,23.212,108.3742]
[1673857703367,28.68689689,23.255,23.213,4.09046]
[1673857703577,20.89,23.27,23.22,21.06]
[1673857703789,50.14886043,23.264,23.23,21.04]
[1673857703994,50.14886043,23.264,23.231,20.0]
[1673857704208,53.0955271,23.263,23.231,20.0]
[1673857704423,20.0,23.262,23.231,20.0]
[1673857704633,4.03115,23.261,23.218,112.8564]
[1673857704849,21.06,23.26,23.218,112.8564]
[1673857705072,240.6851,23.278,23.218,112.8564]
[1673857705073,21.02,23.27,23.22,20.89]
[1673857705277,20.0,23.269,23.23,21.06]
[1673857705470,20.0,23.269,23.232,20.0]
[1673857705800,44.99019764,23.276,23.24,21.06]
[1673857706013,21.06,23.27,23.231,112.062]
[1673857706234,21.06,23.27,23.232,20.0]
[1673857706420,20.0,23.259,23.232,20.0]
[1673857707071,47.70301164,23.265,23.232,20.0]
[1673857707406,21.06,23.27,23.233,20.0]
[1673857707594,21.46196354,23.264,23.234,20.0]
[1673857708016,76.8433832,23.269,23.234,20.0]
[1673857708223,20.0,23.279,23.234,20.0]
[1673857708544,32.88086993,23.269,23.235,20.0]
[1673857708951,21.06,23.26,23.21,21.06]
[1673857709160,20.0,23.259,23.21,21.06]
[1673857709371,20.0,23.258,23.219,20.0]
[1673857709582,24.03115,23.257,23.219,20.0]
[1673857709791,4.03115,23.256,23.219,20.0]
[1673857710024,21.03115,23.256,23.219,20.0]
[1673857710229,31.3423633,23.255,23.22,4.08922]
[1673857710634,17.0,23.254,23.22,4.08922]
[1673857710845,38.46196354,23.254,23.22,4.08922]
[1673857711066,31.08395796,23.253,23.22,4.08922]
[1673857711271,17.56429482,23.26,23.22,4.08922]
[1673857711593,28.38905796,23.257,23.221,20.0]
[1673857711797,112.9698,23.269,23.23,20.9]
[1673857712009,20.0,23.277,23.231,119.00089]
[1673857712205,28.38905796,23.268,23.232,21.08711]
[1673857712419,28.38905796,23.268,23.234,20.0]
[1673857712629,20.0,23.278,23.234,20.0]
[1673857712630,20.0,23.278,23.235,21.08658]
[1673857712859,20.0,23.278,23.236,24.08641]
[1673857713074,20.0,23.278,23.237,21.08623]
[1673857713261,21.06,23.28,23.239,20.0]
[1673857713471,21.06,23.28,23.231,243.9136]
[1673857713472,129.0,23.276,23.24,4.08571]
[1673857713683,21.06,23.26,23.229,36.21721287]
[1673857713999,21.46196354,23.259,23.22,20.86]
[1673857714223,56.92797815,23.259,23.221,4.08905]
[1673857714455,55.46601461,23.258,23.221,4.08905]
[1673857714647,20.0,23.257,23.221,4.08905]
[1673857714957,20.0,23.256,23.221,4.08905]
[1673857715148,41.46196354,23.256,23.221,4.08905]
[1673857715359,20.0,23.254,23.221,4.08905]
[1673857715570,21.06,23.25,23.221,4.08905]
[1673857715779,37.0,23.249,23.208,20.0]
[1673857716010,51.42948994,23.249,23.208,20.0]
[1673857716216,21.46196354,23.253,23.21,20.99]
[1673857716405,20.0,23.254,23.211,4.09081]
[1673857716616,20.0,23.254,23.211,24.18216426]
[1673857716845,20.0,23.254,23.212,40.09135426]
[1673857717069,133.2321,23.256,23.22,20.9]
[1673857717253,29.83528994,23.254,23.222,20.0]
[1673857717461,29.83528994,23.254,23.221,4.08905]
[1673857717680,21.02,23.25,23.2,21.06]
[1673857717892,20.0,23.249,23.2,21.06]
[1673857718104,74.02118682,23.249,23.206,4.09169]
[1673857718311,32.55922328,23.248,23.21,21.06]
[1673857718744,20.0,23.247,23.211,4.09081]
[1673857719157,31.16128994,23.246,23.211,4.09081]
[1673857719485,31.16128994,23.246,23.212,20.09135426]
[1673857719666,134.69406354,23.256,23.213,4.09046]
[1673857720009,34.97406927,23.249,23.213,4.09046]
[1673857720405,31.41798794,23.248,23.213,4.09046]
[1673857720619,20.0,23.247,23.213,4.09046]
[1673857720868,20.0,23.246,23.213,4.09046]
[1673857721161,113.2321,23.256,23.214,20.09135426]
[1673857721363,113.2321,23.256,23.215,24.09011]
[1673857721570,113.2321,23.256,23.216,4.08993]
[1673857721784,113.2321,23.256,23.217,68.2551]
[1673857722102,45.11165302,23.255,23.218,44.08958]
[1673857722309,45.11165302,23.255,23.219,4.0894]
[1673857722525,84.23,23.24,23.18,20.93]
[1673857722744,20.89,23.23,23.18,20.93]
[1673857723253,31.58565293,23.229,23.19,21.04]
[1673857723896,31.58565293,23.229,23.184,17.240107]
[1673857723897,17.0,23.228,23.184,17.240107]
[1673857724289,54.04785293,23.227,23.193,20.0]
[1673857724822,34.04785293,23.226,23.193,20.0]
[1673857726187,34.04785293,23.226,23.191,20.0]
[1673857726415,21.06,23.22,23.191,20.0]
[1673857726605,34.8704496,23.225,23.193,20.0]
[1673857727247,34.8704496,23.225,23.194,20.0]
[1673857727464,34.8704496,23.225,23.193,20.0]
[1673857727465,20.89,23.22,23.193,20.0]
[1673857727985,20.0,23.218,23.193,20.0]
[1673857728183,35.49248226,23.219,23.193,20.0]
[1673857728184,35.49248226,23.219,23.194,20.0]
[1673857728395,35.49248226,23.217,23.195,20.0]
[1673857728613,81.89788486,23.217,23.195,20.0]
[1673857728811,35.49248226,23.217,23.195,20.0]
[1673857729024,32.21844093,23.216,23.196,20.0]
[1673857729333,32.21844093,23.216,23.197,20.0]
[1673857730198,32.21844093,23.216,23.198,20.0]
[1673857730410,32.21844093,23.216,23.199,20.0]
[1673857731136,32.21844093,23.216,23.197,20.0]
[1673857731351,32.21844093,23.216,23.187,20.0]
[1673857731955,32.21844093,23.216,23.188,20.0]
[1673857732193,32.21844093,23.216,23.189,20.0]
[1673857732806,32.21844093,23.216,23.19,20.0]
[1673857733017,32.21844093,23.216,23.191,20.0]
[1673857733331,20.0,23.223,23.19,20.0]
[1673857733547,49.8884761,23.222,23.19,20.0]
[1673857733752,20.0,23.221,23.19,20.0]
[1673857733974,52.8884761,23.221,23.19,20.0]
[1673857734185,32.8884761,23.22,23.183,20.0]
[1673857734378,20.0,23.218,23.183,20.0]
[1673857734902,20.0,23.216,23.183,20.0]
[1673857735324,20.0,23.216,23.173,20.0]
[1673857735542,21.06,23.21,23.173,20.0]
[1673857736072,20.89,23.22,23.174,4.09734]
[1673857736291,21.06,23.23,23.18,20.89]
[1673857736481,21.06,23.23,23.181,4.0961]
[1673857736694,21.46196354,23.229,23.181,4.0961]
[1673857737040,20.0,23.239,23.2,20.99]
[1673857737232,109.7169,23.237,23.201,37.0]
[1673857737632,109.7169,23.237,23.202,4.0924]
[1673857737843,20.87,23.25,23.21,20.9]
[1673857738072,109.7169,23.244,23.212,20.0]
[1673857738274,109.7169,23.244,23.213,20.0]
[1673857738602,21.06,23.27,23.22,20.9]
[1673857738809,113.3349,23.269,23.221,24.08905]
[1673857739017,113.3349,23.269,23.23,21.06]
[1673857739338,20.0,23.268,23.231,57.0]
[1673857739840,20.0,23.267,23.231,168.7645]
[1673857740050,20.0,23.266,23.231,168.7645]
[1673857740815,113.3349,23.269,23.231,168.7645]
[1673857741015,113.3349,23.269,23.232,4.08711]
[1673857741341,21.46196354,23.274,23.24,20.9]
[1673857741532,112.8656,23.286,23.241,21.08553]
[1673857741742,116.89675,23.286,23.242,20.0]
[1673857741954,20.0,23.285,23.244,20.0]
[1673857742281,112.8656,23.286,23.245,37.0]
[1673857742700,21.46196354,23.285,23.245,37.0]
[1673857742921,21.46196354,23.285,23.245,20.0]
[1673857743107,20.0,23.284,23.246,20.0]
[1673857743322,112.8656,23.286,23.247,20.0]
[1673857743537,112.8656,23.286,23.25,20.9]
[1673857743730,21.46196354,23.29,23.251,20.0]
[1673857743945,21.06,23.31,23.26,20.89]
[1673857744158,4.03115,23.309,23.261,20.0]
[1673857744365,25.49311354,23.309,23.262,17.0]
[1673857744584,20.0,23.308,23.264,20.0]
[1673857744801,41.46196354,23.308,23.265,37.0]
[1673857745125,20.89,23.3,23.265,37.0]
[1673857745311,31.63827773,23.307,23.265,37.0]
[1673857745521,31.63827773,23.307,23.266,31.69730622]
[1673857745758,20.0,23.308,23.268,20.0]
[1673857745943,20.0,23.308,23.27,20.0]
[1673857746148,20.0,23.308,23.271,20.0]
[1673857746367,21.46196354,23.307,23.272,17.0]
[1673857746578,20.0,23.308,23.272,17.0]
[1673857746902,20.0,23.309,23.274,20.0]
[1673857747239,21.06,23.31,23.275,37.0]
[1673857747534,132.8656,23.319,23.275,37.0]
[1673857747736,112.8656,23.319,23.28,20.89]
[1673857747949,112.8656,23.319,23.282,20.0]
[1673857748162,112.8656,23.319,23.283,37.0]
[1673857748359,20.0,23.333,23.283,37.0]
[1673857748360,20.0,23.333,23.29,20.86]
[1673857748569,21.46196354,23.329,23.291,37.0]
[1673857748802,109.0706,23.339,23.292,20.0]
[1673857748991,109.0706,23.339,23.3,20.86]
[1673857749202,109.0706,23.339,23.301,20.0]
[1673857749419,109.0706,23.339,23.302,17.0]
[1673857749728,21.46196354,23.338,23.302,17.0]
[1673857749942,21.06,23.33,23.28,20.89]
[1673857750270,41.46196354,23.329,23.284,20.0]
[1673857750479,41.46196354,23.329,23.284,58.17592589]
[1673857750688,45.49311354,23.328,23.284,58.17592589]
[1673857750902,20.0,23.326,23.284,58.17592589]
[1673857751095,17.0,23.325,23.284,20.0]
[1673857751424,21.06,23.32,23.284,20.0]
[1673857751645,20.0,23.319,23.277,20.0]
[1673857751821,17.0,23.318,23.277,20.0]
[1673857752049,20.0,23.317,23.277,20.0]
[1673857752263,19.78437,23.316,23.277,20.0]
[1673857752492,19.78437,23.316,23.276,20.0]
[1673857752493,20.89,23.31,23.276,20.0]
[1673857752901,37.0,23.309,23.271,20.0]
[1673857753107,20.0,23.309,23.271,20.0]
[1673857753533,50.9098551,23.308,23.271,20.0]
[1673857753753,20.89,23.31,23.271,20.0]
[1673857753945,21.46196354,23.314,23.272,42.25601589]
[1673857754161,45.79763977,23.318,23.273,4.07991]
[1673857754384,45.79763977,23.314,23.273,4.07991]
[1673857754586,21.06,23.32,23.274,20.0]
[1673857754909,20.0,23.322,23.281,20.0]
[1673857755434,20.0,23.322,23.283,20.0]
[1673857755646,41.46196354,23.324,23.284,17.0]
[1673857755858,20.87,23.33,23.286,20.0]
[1673857756044,20.87,23.33,23.29,20.86]
[1673857756254,20.0,23.338,23.291,20.0]
[1673857756595,108.6713,23.337,23.292,17.0]
[1673857756805,20.0,23.336,23.294,20.0]
[1673857757022,41.46196354,23.336,23.3,20.89]
[1673857757225,41.46196354,23.336,23.301,20.0]
[1673857757416,41.46196354,23.336,23.302,17.0]
[1673857757417,20.0,23.336,23.302,17.0]
[1673857757843,24.03115,23.336,23.303,20.0]
[1673857758058,21.06,23.33,23.296,117.8933]
[1673857758482,24.03115,23.335,23.297,20.0]
[1673857758696,21.46196354,23.334,23.297,20.0]
[1673857758904,20.0,23.333,23.297,20.0]
[1673857759314,21.46196354,23.332,23.298,17.0]
[1673857759639,108.6713,23.337,23.3,20.99]
[1673857759962,108.6713,23.337,23.302,20.0]
[1673857760355,41.46196354,23.336,23.303,20.0]
[1673857760687,20.0,23.336,23.303,20.0]
[1673857760888,20.0,23.336,23.304,20.0]
[1673857761100,40.0,23.336,23.305,20.0]
[1673857761305,20.0,23.336,23.306,20.0]
[1673857761514,108.6713,23.337,23.306,20.0]
[1673857761725,20.0,23.335,23.307,20.0]
[1673857761943,20.0,23.335,23.309,20.0]
[1673857762174,20.0,23.335,23.31,17.0]
[1673857762362,20.0,23.335,23.307,20.0]
[1673857762363,21.06,23.33,23.307,20.0]
[1673857762571,20.0,23.329,23.302,20.0]
[1673857762778,17.0,23.328,23.302,20.0]
[1673857763316,20.0,23.327,23.302,20.0]
[1673857763539,17.0,23.326,23.302,20.0]
[1673857763722,17.0,23.326,23.291,20.0]
[1673857763723,42.49311354,23.326,23.291,20.0]
[1673857763935,20.0,23.325,23.284,130.3608]
[1673857764143,17.0,23.324,23.284,130.3608]
[1673857764354,21.46196354,23.324,23.284,130.3608]
[1673857764679,20.0,23.325,23.284,130.3608]
[1673857765420,41.46196354,23.325,23.284,130.3608]
[1673857765619,20.0,23.323,23.284,130.3608]
[1673857765827,17.0,23.322,23.284,130.3608]
[1673857766037,20.0,23.359,23.3,21.06]
[1673857766368,20.0,23.359,23.31,20.89]
[1673857766580,21.46196354,23.356,23.311,129.02006]
[1673857766786,116.5357,23.357,23.311,129.02006]
[1673857766787,20.0,23.355,23.312,44.07309]
[1673857766981,20.0,23.355,23.313,21.07291]
[1673857767195,25.49311354,23.354,23.314,20.0]
[1673857767408,60.57865312,23.354,23.315,16.5]
[1673857767733,116.5357,23.357,23.32,21.06]
[1673857768043,21.46196354,23.356,23.32,20.56]
[1673857768255,20.0,23.355,23.321,40.0]
[1673857768471,116.5357,23.357,23.321,40.0]
[1673857768789,21.02,23.37,23.322,4.07134]
[1673857768980,21.46196354,23.36,23.322,119.63934]
[1673857769200,20.0,23.359,23.323,20.0]
[1673857769522,41.46196354,23.358,23.324,20.0]
[1673857769731,20.0,23.357,23.325,20.0]
[1673857769927,41.46196354,23.357,23.325,20.0]
[1673857770146,21.46196354,23.356,23.325,20.0]
[1673857770354,21.46196354,23.356,23.317,20.0]
[1673857770570,20.0,23.357,23.321,20.0]
[1673857770800,20.0,23.357,23.322,115.7878]
[1673857771104,20.0,23.358,23.324,20.0]
[1673857771309,21.46196354,23.363,23.325,36.5]
[1673857771519,20.0,23.368,23.325,36.5]
[1673857771520,20.0,23.362,23.33,21.04]
[1673857771712,20.0,23.362,23.331,20.0]
[1673857772243,20.0,23.362,23.327,20.0]
[1673857772459,20.0,23.368,23.327,20.0]
[1673857772664,20.0,23.366,23.328,20.0]
[1673857773192,20.0,23.367,23.329,4.07012]
[1673857773413,20.0,23.368,23.329,21.07012]
[1673857773617,20.0,23.367,23.331,20.0]
[1673857773825,109.9563,23.369,23.332,17.0]
[1673857774032,20.98,23.38,23.34,21.06]
[1673857774246,116.7732,23.378,23.341,37.0]
[1673857774682,20.0,23.377,23.342,20.0]
[1673857774871,20.0,23.377,23.343,37.0]
[1673857775079,20.0,23.377,23.344,20.0]
[1673857775303,20.0,23.377,23.345,37.0]
[1673857775515,20.89,23.37,23.335,115.7208]
[1673857775720,20.89,23.37,23.336,20.0]
[1673857776044,20.0,23.369,23.336,20.0]
[1673857776239,21.46196354,23.374,23.336,20.0]
[1673857776458,20.0,23.373,23.337,20.0]
[1673857776864,41.46196354,23.373,23.337,20.0]
[1673857777074,41.46196354,23.373,23.33,20.89]
[1673857777281,21.06,23.37,23.321,20.0]
[1673857777508,24.03115,23.369,23.321,20.0]
[1673857777710,20.0,23.368,23.324,19.5]
[1673857778037,41.46196354,23.368,23.321,20.0]
[1673857778253,21.06,23.36,23.321,20.0]
[1673857778450,17.0,23.359,23.321,20.0]
[1673857778775,20.0,23.358,23.323,20.0]
[1673857778995,21.46196354,23.358,23.323,20.0]
[1673857779192,20.0,23.367,23.324,4.07099]
[1673857779505,21.46196354,23.364,23.324,4.07099]
[1673857779727,20.0,23.366,23.324,4.07099]
[1673857779911,21.46196354,23.365,23.324,21.07099]
[1673857780121,21.46196354,23.365,23.324,4.07099]
[1673857780329,84.43,23.36,23.324,4.07099]
[1673857780565,21.06,23.35,23.31,40.86]
[1673857780766,40.0,23.349,23.31,40.86]
[1673857780981,61.46196354,23.349,23.31,40.86]
[1673857781173,21.46196354,23.348,23.31,40.86]
[1673857781383,49.03905977,23.349,23.31,40.86]
[1673857781612,20.0,23.358,23.31,40.86]
[1673857781936,21.46196354,23.348,23.31,40.86]
[1673857782241,37.0,23.347,23.31,20.0]
[1673857782434,37.0,23.347,23.309,110.785]
[1673857782643,21.46196354,23.346,23.31,41.04]
[1673857782855,21.06,23.36,23.311,4.07326]
[1673857783064,21.46196354,23.355,23.312,20.0]
[1673857783298,17.0,23.354,23.312,20.0]
[1673857783480,20.0,23.353,23.314,20.0]
[1673857783687,20.0,23.353,23.315,20.0]
[1673857783901,20.0,23.353,23.316,20.0]
[1673857784127,38.46196354,23.354,23.316,20.0]
[1673857784345,20.0,23.353,23.318,20.0]
[1673857784551,21.46196354,23.354,23.318,20.0]
[1673857784754,108.2215,23.364,23.32,21.06]
[1673857784755,38.51002291,23.352,23.32,21.06]
[1673857784965,38.51002291,23.352,23.33,20.86]
[1673857785177,108.2215,23.364,23.331,20.0]
[1673857785390,108.2215,23.364,23.332,17.0]
[1673857785585,20.0,23.363,23.334,20.0]
[1673857785915,20.0,23.363,23.335,37.0]
[1673857786112,20.0,23.363,23.336,20.0]
[1673857786325,20.0,23.363,23.337,17.0]
[1673857786531,20.0,23.363,23.335,20.0]
[1673857786753,20.0,23.363,23.336,17.0]
[1673857787687,20.0,23.363,23.337,20.0]
[1673857787895,108.2215,23.364,23.338,17.0]
[1673857788124,21.46196354,23.37,23.338,17.0]
[1673857788443,21.46196354,23.37,23.34,20.0]
[1673857788635,21.46196354,23.37,23.341,17.0]
[1673857788850,20.0,23.371,23.343,20.0]
[1673857789076,20.0,23.371,23.344,17.0]
[1673857789269,20.0,23.371,23.345,20.0]
[1673857789479,20.0,23.371,23.347,20.0]
[1673857789686,108.6744,23.372,23.347,20.0]
[1673857789902,62.27,23.38,23.348,17.0]
[1673857790752,21.46196354,23.378,23.346,17.0]
[1673857791164,17.0,23.377,23.346,17.0]
[1673857791368,37.0,23.377,23.346,17.0]
[1673857791699,20.0,23.383,23.347,40.0]
[1673857791899,20.0,23.383,23.348,136.4406]
[1673857792318,21.46196354,23.38,23.35,20.0]
[1673857792547,62.75196354,23.38,23.351,17.0]
[1673857792738,41.29,23.382,23.352,20.0]
[1673857792949,42.52196354,23.38,23.352,20.0]
[1673857793156,20.0,23.378,23.348,119.4406]
[1673857793379,41.46196354,23.378,23.33,20.9]
[1673857793589,21.06,23.37,23.33,20.9]
[1673857793800,21.06,23.37,23.323,20.0]
[1673857794007,79.97198645,23.369,23.323,20.0]
[1673857794228,58.51002291,23.369,23.323,20.0]
[1673857794444,41.46196354,23.368,23.336,20.0]
[1673857794630,20.0,23.367,23.336,20.0]
[1673857795260,20.0,23.367,23.326,19.53601584]
[1673857795470,20.0,23.366,23.336,17.0]
[1673857795679,62.92392708,23.366,23.324,119.3169]
[1673857795911,17.0,23.365,23.324,119.3169]
[1673857796121,17.0,23.365,23.322,119.1237]
[1673857796122,78.87865312,23.365,23.322,119.1237]
[1673857796321,21.02,23.36,23.322,118.6237]
[1673857796534,20.0,23.359,23.323,20.0]
[1673857796726,41.29,23.358,23.323,20.0]
[1673857797077,20.0,23.363,23.323,20.0]
[1673857797268,20.0,23.366,23.323,20.0]
[1673857797269,21.46196354,23.367,23.323,20.0]
[1673857797468,20.0,23.385,23.33,21.06]
[1673857797680,62.18,23.37,23.331,24.06977]
[1673857797895,20.0,23.368,23.333,20.0]
[1673857798111,20.0,23.368,23.334,37.0]
[1673857798305,20.0,23.368,23.335,20.0]
[1673857798518,21.46196354,23.367,23.336,17.0]
[1673857798741,20.0,23.366,23.334,17.0]
[1673857799061,21.46196354,23.365,23.331,19.41469992]
[1673857799462,20.0,23.364,23.332,20.0]
[1673857799672,20.0,23.364,23.32,140.3069]
[1673857799883,58.29,23.363,23.323,39.41469992]
[1673857800092,79.75196354,23.363,23.323,39.41469992]
[1673857800314,20.0,23.364,23.323,39.41469992]
[1673857800522,20.0,23.364,23.324,4.07099]
[1673857800954,41.46196354,23.364,23.325,19.41469992]
[1673857801155,41.46196354,23.364,23.326,20.0]
[1673857801473,21.06,23.38,23.327,35.91469992]
[1673857801687,20.0,23.377,23.33,21.06]
[1673857801888,61.29,23.376,23.331,4.06977]
[1673857802108,27.87144244,23.374,23.331,43.47196159]
[1673857802297,82.75196354,23.376,23.332,19.40219159]
[1673857802298,20.0,23.368,23.332,19.40219159]
[1673857803776,119.1276,23.369,23.333,20.0]
[1673857803995,119.1276,23.369,23.327,39.40219159]
[1673857804196,119.1276,23.369,23.334,19.40219159]
[1673857804405,20.0,23.368,23.335,150.1331]
[1673857804644,20.0,23.368,23.335,130.1331]
[1673857804645,41.46196354,23.368,23.335,130.1331]
[1673857804821,30.73144244,23.367,23.335,130.1331]
[1673857805030,41.46196354,23.368,23.336,18.32803652]
[1673857805261,20.0,23.366,23.337,20.0]
[1673857805463,20.0,23.366,23.335,130.1331]
[1673857805464,63.19002291,23.366,23.335,130.1331]
[1673857805787,20.0,23.366,23.337,18.32803652]
[1673857805996,20.0,23.366,23.335,130.1331]
[1673857806198,41.46196354,23.366,23.335,110.1331]
[1673857806395,20.0,23.365,23.335,110.1331]
[1673857806726,119.1276,23.369,23.336,18.32803652]
[1673857806727,45.85114715,23.367,23.336,18.32803652]
[1673857806912,45.85114715,23.367,23.336,17.82803652]
[1673857807124,21.06,23.38,23.337,4.06872]
[1673857807354,85.97629477,23.377,23.34,20.89]
[1673857807677,85.97629477,23.377,23.341,4.06803]
[1673857807986,85.97629477,23.377,23.342,19.48955361]
[1673857808196,20.0,23.376,23.344,20.0]
[1673857808429,113.5334,23.382,23.345,41.06733]
[1673857808635,63.0378281,23.378,23.346,4.06716]
[1673857808839,113.5334,23.382,23.346,23.55671361]
[1673857809052,113.5334,23.382,23.347,56.48955361]
[1673857809372,20.0,23.381,23.348,39.48955361]
[1673857809583,20.0,23.381,23.348,19.48955361]
[1673857809796,32.90446265,23.38,23.349,39.48955361]
[1673857810107,20.0,23.379,23.349,20.0]
[1673857810425,83.86195857,23.378,23.342,20.0]
[1673857810639,17.0,23.377,23.341,20.0]
[1673857810831,67.93757125,23.377,23.338,20.0]
[1673857811159,50.93757125,23.376,23.338,20.0]
[1673857811373,37.0,23.375,23.339,39.48955361]
[1673857811565,37.0,23.375,23.338,20.0]
[1673857811566,20.0,23.375,23.338,20.0]
[1673857811770,67.93757125,23.374,23.336,20.0]
[1673857811993,20.0,23.373,23.337,20.0]
[1673857812227,70.93757125,23.373,23.337,39.48955361]
[1673857812531,70.93757125,23.373,23.338,20.0]
[1673857812532,50.93757125,23.372,23.338,20.0]
[1673857812744,20.0,23.371,23.338,20.0]
[1673857812926,49.73524465,23.371,23.339,17.0]
[1673857813267,85.26614924,23.37,23.34,20.0]
[1673857813675,55.53090459,23.369,23.337,20.0]
[1673857813885,55.53090459,23.369,23.341,38.97910722]
[1673857814204,20.0,23.371,23.342,40.0]
[1673857814612,20.0,23.371,23.343,19.48955361]
[1673857814822,20.0,23.371,23.345,20.0]
[1673857815237,48.38229992,23.372,23.347,20.0]
[1673857815453,20.0,23.378,23.347,20.0]
[1673857815454,21.06,23.39,23.347,20.0]
[1673857815664,43.54277259,23.379,23.348,139.02405361]